[Event "*** Qualifier 3: Titled Tuesday 3|2 Blitz"]
[Site "Chess.com"]
[Date "2017.04.18"]
[Round "7"]
[White "Iball95"]
[Black "ka1ser64"]
[Result "0-1"]
[WhiteElo "2511"]
[BlackElo "2351"]
[TimeControl "180+2"]
[EndTime "14:34:17 PDT"]
[Termination "ka1ser64 won by resignation"]

1. Nf3 {[%clk 0:03:02]} 1... d5 {[%clk 0:02:59.9]} 2. c4 {[%clk 0:03:01.7]} 2...
e6 {[%clk 0:02:58.6]} 3. g3 {[%clk 0:03:02.3]} 3... Nf6 {[%clk 0:02:59.9]} 4.
Bg2 {[%clk 0:03:03.6]} 4... Be7 {[%clk 0:03:01.6]} 5. O-O {[%clk 0:03:05]} 5...
O-O {[%clk 0:03:03.3]} 6. b3 {[%clk 0:03:06.5]} 6... dxc4 {[%clk 0:03:04.7]} 7.
b4 {[%clk 0:03:08.4]} 7... c5 {[%clk 0:03:06.3]} 8. bxc5 {[%clk 0:03:08.2]} 8...
Bxc5 {[%clk 0:03:07.4]} 9. Qa4 {[%clk 0:03:03.3]} 9... Qc7 {[%clk 0:02:50.4]}
10. Na3 {[%clk 0:02:56.8]} 10... a6 {[%clk 0:02:43.3]} 11. Qxc4 {[%clk 0:02:48]}
11... b5 {[%clk 0:02:41.6]} 12. Qc2 {[%clk 0:02:48.4]} 12... Bb7 {[%clk
0:02:41.3]} 13. d4 {[%clk 0:02:47.6]} 13... Bd6 {[%clk 0:02:34.2]} 14. Qxc7
{[%clk 0:02:48.6]} 14... Bxc7 {[%clk 0:02:35.4]} 15. Nc2 {[%clk 0:02:50.5]}
15... Nbd7 {[%clk 0:02:26.7]} 16. a4 {[%clk 0:02:51.2]} 16... Be4 {[%clk
0:02:21.5]} 17. Nfe1 {[%clk 0:02:23.8]} 17... Ba5 {[%clk 0:02:09.3]} 18. axb5
{[%clk 0:02:17.9]} 18... axb5 {[%clk 0:02:10.2]} 19. f3 {[%clk 0:02:03.3]} 19...
Bd5 {[%clk 0:02:06.4]} 20. Ne3 {[%clk 0:02:01.4]} 20... Bc3 {[%clk 0:02:00.7]}
21. Rxa8 {[%clk 0:02:01.5]} 21... Rxa8 {[%clk 0:02:00.4]} 22. Nxd5 {[%clk
0:02:03.1]} 22... Nxd5 {[%clk 0:01:50.9]} 23. e3 {[%clk 0:01:42.8]} 23... b4
{[%clk 0:01:51.7]} 24. Nd3 {[%clk 0:01:42.7]} 24... b3 {[%clk 0:01:47.2]} 25. f4
{[%clk 0:01:42]} 25... Ra2 {[%clk 0:01:44.3]} 26. f5 {[%clk 0:01:23.7]} 26... b2
{[%clk 0:01:35.9]} 27. fxe6 {[%clk 0:00:50.2]} 27... fxe6 {[%clk 0:01:36.1]} 28.
Bxb2 {[%clk 0:00:39.6]} 28... Bxb2 {[%clk 0:01:35.7]} 29. Bh3 {[%clk 0:00:35]}
29... Nf8 {[%clk 0:01:29.9]} 30. Nxb2 {[%clk 0:00:14.4]} 30... Rxb2 {[%clk
0:01:29.9]} 31. e4 {[%clk 0:00:15.9]} 31... Nc3 {[%clk 0:01:22.9]} 32. d5 {[%clk
0:00:07.2]} 32... exd5 {[%clk 0:01:21.7]} 33. e5 {[%clk 0:00:08.5]} 33... Re2
{[%clk 0:01:21.8]} 34. Rf3 {[%clk 0:00:05.2]} 34... d4 {[%clk 0:01:18.7]} 35.
Rd3 {[%clk 0:00:06.3]} 35... Rxe5 {[%clk 0:01:19.7]} 36. Kf2 {[%clk 0:00:07.1]}
36... Rd5 {[%clk 0:00:53.7]} 37. Bg2 {[%clk 0:00:07.7]} 37... Rd6 {[%clk
0:00:52.4]} 38. Kf3 {[%clk 0:00:09.2]} 38... Ne6 {[%clk 0:00:51.3]} 39. Rd2
{[%clk 0:00:09.6]} 39... Kf7 {[%clk 0:00:51.8]} 40. Bh3 {[%clk 0:00:10.5]} 40...
Ng5+ {[%clk 0:00:51.5]} 0-1

[Event "*** Qualifier 3: Titled Tuesday 3|2 Blitz"]
[Site "Chess.com"]
[Date "2017.04.18"]
[Round "7"]
[White "chessking2151"]
[Black "JusticeBot"]
[Result "0-1"]
[WhiteElo "2329"]
[BlackElo "2515"]
[TimeControl "180+2"]
[EndTime "14:34:25 PDT"]
[Termination "JusticeBot won by resignation"]

1. e4 {[%clk 0:03:02]} 1... e5 {[%clk 0:03:01.1]} 2. Nf3 {[%clk 0:03:01.9]} 2...
Nc6 {[%clk 0:03:02.5]} 3. Bb5 {[%clk 0:03:02.9]} 3... a6 {[%clk 0:03:03.4]} 4.
Ba4 {[%clk 0:03:03.9]} 4... Nf6 {[%clk 0:03:04.8]} 5. d3 {[%clk 0:03:04.8]} 5...
b5 {[%clk 0:03:06.3]} 6. Bb3 {[%clk 0:03:05.8]} 6... Bc5 {[%clk 0:03:07.8]} 7.
a4 {[%clk 0:03:04.2]} 7... Bb7 {[%clk 0:03:08.3]} 8. O-O {[%clk 0:03:00.1]} 8...
O-O {[%clk 0:03:06.5]} 9. Nc3 {[%clk 0:02:53.4]} 9... b4 {[%clk 0:03:05.6]} 10.
Nd5 {[%clk 0:02:49.9]} 10... h6 {[%clk 0:03:01.3]} 11. c3 {[%clk 0:02:44.1]}
11... d6 {[%clk 0:02:37.5]} 12. d4 {[%clk 0:02:41.6]} 12... exd4 {[%clk
0:02:25.7]} 13. cxd4 {[%clk 0:02:41.1]} 13... Ba7 {[%clk 0:02:27.6]} 14. Nxf6+
{[%clk 0:02:25.8]} 14... Qxf6 {[%clk 0:02:29.5]} 15. Bd5 {[%clk 0:02:24.6]}
15... Rab8 {[%clk 0:02:29.3]} 16. Be3 {[%clk 0:02:24]} 16... Na5 {[%clk
0:02:23.5]} 17. e5 {[%clk 0:02:21.8]} 17... Qe7 {[%clk 0:02:08.4]} 18. Bxb7
{[%clk 0:02:15.2]} 18... Rxb7 {[%clk 0:02:10.3]} 19. Rc1 {[%clk 0:02:13.1]}
19... dxe5 {[%clk 0:02:04.4]} 20. Nxe5 {[%clk 0:02:13.1]} 20... c5 {[%clk
0:02:05.8]} 21. Qg4 {[%clk 0:01:53.9]} 21... cxd4 {[%clk 0:02:05.1]} 22. Nc6
{[%clk 0:01:44.5]} 22... Nxc6 {[%clk 0:02:03.4]} 23. Bxh6 {[%clk 0:01:45.6]}
23... Qf6 {[%clk 0:02:04.7]} 24. Rxc6 {[%clk 0:01:44.2]} 24... Qe5 {[%clk
0:01:54.4]} 25. Bg5 {[%clk 0:01:29.2]} 25... f5 {[%clk 0:01:17.8]} 26. Qd1
{[%clk 0:01:10.8]} 26... f4 {[%clk 0:01:14.2]} 27. h4 {[%clk 0:01:03.8]} 27...
Rd7 {[%clk 0:01:09.2]} 28. Re1 {[%clk 0:01:02.8]} 28... Qf5 {[%clk 0:01:08.3]}
29. Rxa6 {[%clk 0:01:00.6]} 29... d3 {[%clk 0:01:08.2]} 30. Qd2 {[%clk 0:00:49]}
30... f3 {[%clk 0:01:07.1]} 31. gxf3 {[%clk 0:00:14.2]} 31... Qxf3 {[%clk
0:01:05.3]} 32. Be3 {[%clk 0:00:15.5]} 32... Qg4+ {[%clk 0:01:04.9]} 33. Kf1
{[%clk 0:00:16.2]} 33... Qh3+ {[%clk 0:01:05.8]} 34. Kg1 {[%clk 0:00:17.5]}
34... Qg4+ {[%clk 0:00:56.7]} 35. Kf1 {[%clk 0:00:17.6]} 35... Qxh4 {[%clk
0:00:58.6]} 36. Kg2 {[%clk 0:00:13.3]} 36... Qg4+ {[%clk 0:00:57.7]} 37. Kf1
{[%clk 0:00:10]} 37... Bb8 {[%clk 0:00:43.9]} 38. f4 {[%clk 0:00:05.1]} 38...
Bxf4 {[%clk 0:00:43]} 39. Bxf4 {[%clk 0:00:04.4]} 39... Rxf4+ {[%clk 0:00:44.2]}
40. Qxf4 {[%clk 0:00:05.8]} 40... Qxf4+ {[%clk 0:00:46.1]} 41. Kg2 {[%clk
0:00:07.5]} 41... Qd2+ {[%clk 0:00:45.5]} 42. Kf1 {[%clk 0:00:08]} 42... Rf7+
{[%clk 0:00:46.6]} 0-1

[Event "*** Qualifier 3: Titled Tuesday 3|2 Blitz"]
[Site "Chess.com"]
[Date "2017.04.18"]
[Round "7"]
[White "Ilja_Semjonovs"]
[Black "Lupul_Cenusiu"]
[Result "0-1"]
[WhiteElo "2198"]
[BlackElo "2462"]
[TimeControl "180+2"]
[EndTime "14:34:27 PDT"]
[Termination "Lupul_Cenusiu won by resignation"]

1. d4 {[%clk 0:03:02]} 1... Nf6 {[%clk 0:03:00.5]} 2. Nf3 {[%clk 0:03:01.9]}
2... c5 {[%clk 0:03:00.3]} 3. c3 {[%clk 0:03:02.7]} 3... e6 {[%clk 0:03:00.8]}
4. Bg5 {[%clk 0:03:03.3]} 4... h6 {[%clk 0:03:01.2]} 5. Bxf6 {[%clk 0:03:02.1]}
5... Qxf6 {[%clk 0:03:01.7]} 6. e3 {[%clk 0:03:03.5]} 6... a6 {[%clk 0:03:01.7]}
7. Bd3 {[%clk 0:03:04.2]} 7... Nc6 {[%clk 0:03:02.1]} 8. Nbd2 {[%clk 0:03:05]}
8... d5 {[%clk 0:03:02.7]} 9. Qe2 {[%clk 0:03:04.8]} 9... g6 {[%clk 0:03:02]}
10. O-O {[%clk 0:03:04.2]} 10... Be7 {[%clk 0:03:02]} 11. Rfe1 {[%clk
0:02:39.7]} 11... O-O {[%clk 0:03:01.4]} 12. Rad1 {[%clk 0:02:40.3]} 12... b5
{[%clk 0:02:58.4]} 13. Bb1 {[%clk 0:02:40.2]} 13... Qg7 {[%clk 0:02:50.7]} 14.
Nb3 {[%clk 0:02:39.9]} 14... c4 {[%clk 0:02:48.5]} 15. Nbd2 {[%clk 0:02:39.9]}
15... a5 {[%clk 0:02:44.5]} 16. e4 {[%clk 0:02:40.7]} 16... b4 {[%clk
0:02:40.8]} 17. exd5 {[%clk 0:02:41.7]} 17... exd5 {[%clk 0:02:41.6]} 18. Ne5
{[%clk 0:02:33.8]} 18... Nxe5 {[%clk 0:02:42.3]} 19. Qxe5 {[%clk 0:02:22.4]}
19... Be6 {[%clk 0:02:41.3]} 20. Qc7 {[%clk 0:01:36.1]} 20... Bf6 {[%clk
0:02:36.4]} 21. Nf3 {[%clk 0:01:36.5]} 21... Rfc8 {[%clk 0:02:35.8]} 22. Qd6
{[%clk 0:01:29]} 22... bxc3 {[%clk 0:02:32]} 23. bxc3 {[%clk 0:01:29.3]} 23...
Rab8 {[%clk 0:02:25.8]} 24. h3 {[%clk 0:01:02.8]} 24... Qf8 {[%clk 0:02:09.9]}
25. Qg3 {[%clk 0:00:57.2]} 25... Rb6 {[%clk 0:02:05.2]} 26. Ne5 {[%clk
0:00:32.6]} 26... Qg7 {[%clk 0:01:49.2]} 27. Bc2 {[%clk 0:00:22.4]} 27... Rb2
{[%clk 0:01:37.8]} 28. Ba4 {[%clk 0:00:19.2]} 28... Rxa2 {[%clk 0:01:35.2]} 29.
Bd7 {[%clk 0:00:15.7]} 29... Bxe5 {[%clk 0:01:35]} 30. dxe5 {[%clk 0:00:11.7]}
30... Bxd7 {[%clk 0:01:35.1]} 31. Rxd5 {[%clk 0:00:12.6]} 31... Be6 {[%clk
0:01:35.9]} 32. Rd6 {[%clk 0:00:13.8]} 32... Rb8 {[%clk 0:01:27.9]} 33. Red1
{[%clk 0:00:13.9]} 33... Rab2 {[%clk 0:01:28]} 34. Qf3 {[%clk 0:00:12.9]} 34...
Rb1 {[%clk 0:01:28.1]} 35. Qe3 {[%clk 0:00:08.9]} 35... Rxd1+ {[%clk 0:01:27.1]}
36. Rxd1 {[%clk 0:00:08.8]} 36... Ra8 {[%clk 0:01:27.7]} 37. Kh2 {[%clk
0:00:09.5]} 37... a4 {[%clk 0:01:28]} 38. Qe4 {[%clk 0:00:09.3]} 38... Qf8
{[%clk 0:01:26.8]} 39. f4 {[%clk 0:00:07.9]} 39... a3 {[%clk 0:01:27.7]} 40. g4
{[%clk 0:00:08.9]} 40... a2 {[%clk 0:01:27.1]} 41. f5 {[%clk 0:00:10]} 41...
a1=Q {[%clk 0:01:27.4]} 42. Rxa1 {[%clk 0:00:10.5]} 42... Rxa1 {[%clk
0:01:27.6]} 43. fxe6 {[%clk 0:00:11.7]} 43... Qe7 {[%clk 0:01:26.4]} 44. exf7+
{[%clk 0:00:09.9]} 44... Qxf7 {[%clk 0:01:27.4]} 45. Kg2 {[%clk 0:00:07.5]}
45... Ra2+ {[%clk 0:01:25.7]} 0-1

[Event "*** Qualifier 3: Titled Tuesday 3|2 Blitz"]
[Site "Chess.com"]
[Date "2017.04.18"]
[Round "7"]
[White "TenisMaster"]
[Black "Indianlad"]
[Result "0-1"]
[WhiteElo "2671"]
[BlackElo "2742"]
[TimeControl "180+2"]
[EndTime "14:34:43 PDT"]
[Termination "Indianlad won by resignation"]

1. e4 {[%clk 0:02:58.9]} 1... c6 {[%clk 0:03:01.5]} 2. Nc3 {[%clk 0:02:52.9]}
2... d5 {[%clk 0:03:02.9]} 3. Nf3 {[%clk 0:02:53.6]} 3... Nf6 {[%clk 0:02:59.4]}
4. e5 {[%clk 0:02:48]} 4... Ne4 {[%clk 0:03:00.8]} 5. Ne2 {[%clk 0:02:48.8]}
5... Qb6 {[%clk 0:03:02.1]} 6. d4 {[%clk 0:02:48.2]} 6... e6 {[%clk 0:02:50.3]}
7. Nfg1 {[%clk 0:02:43.1]} 7... f6 {[%clk 0:02:51.2]} 8. f3 {[%clk 0:02:43.9]}
8... Ng5 {[%clk 0:02:52]} 9. exf6 {[%clk 0:02:43.6]} 9... gxf6 {[%clk
0:02:53.1]} 10. f4 {[%clk 0:02:23.6]} 10... Nf7 {[%clk 0:02:53.3]} 11. Nf3
{[%clk 0:02:23.5]} 11... c5 {[%clk 0:02:54.8]} 12. c3 {[%clk 0:02:15]} 12... Nc6
{[%clk 0:02:56]} 13. a3 {[%clk 0:01:38.8]} 13... Bd7 {[%clk 0:02:51.7]} 14. Ng3
{[%clk 0:01:39.6]} 14... h5 {[%clk 0:02:46.5]} 15. Bd3 {[%clk 0:01:22.7]} 15...
h4 {[%clk 0:02:46]} 16. Ne2 {[%clk 0:01:22.2]} 16... O-O-O {[%clk 0:02:47.4]}
17. Be3 {[%clk 0:01:18.6]} 17... c4 {[%clk 0:02:42.2]} 18. Bc2 {[%clk
0:01:16.7]} 18... Nd6 {[%clk 0:02:32]} 19. O-O {[%clk 0:01:17.3]} 19... f5
{[%clk 0:02:24.4]} 20. Ne5 {[%clk 0:01:14.6]} 20... Be8 {[%clk 0:01:58.3]} 21.
Qd2 {[%clk 0:01:12.4]} 21... Qc7 {[%clk 0:01:56.4]} 22. Kh1 {[%clk 0:01:05.3]}
22... Rg8 {[%clk 0:01:57.8]} 23. Ng1 {[%clk 0:01:04.7]} 23... Be7 {[%clk
0:01:51.6]} 24. Nh3 {[%clk 0:01:03.1]} 24... Ne4 {[%clk 0:01:39.4]} 25. Bxe4
{[%clk 0:01:03.3]} 25... dxe4 {[%clk 0:01:37.1]} 26. Nxc4 {[%clk 0:00:59.9]}
26... Bh5 {[%clk 0:01:37.8]} 27. Qf2 {[%clk 0:00:44.9]} 27... Bg4 {[%clk
0:01:35.6]} 28. Ng5 {[%clk 0:00:31.3]} 28... Bxg5 {[%clk 0:01:36.7]} 29. fxg5
{[%clk 0:00:32.4]} 29... h3 {[%clk 0:01:38.6]} 30. g3 {[%clk 0:00:31.8]} 30...
Bf3+ {[%clk 0:01:32.3]} 31. Kg1 {[%clk 0:00:32.3]} 31... Bg2 {[%clk 0:01:20.3]}
32. Rfd1 {[%clk 0:00:26.1]} 32... Ne7 {[%clk 0:01:17.3]} 33. Bf4 {[%clk
0:00:26.6]} 33... Qxc4 {[%clk 0:01:17.5]} 34. d5 {[%clk 0:00:24.8]} 34... Nxd5
{[%clk 0:01:03]} 35. Qxa7 {[%clk 0:00:20.6]} 35... Nxf4 {[%clk 0:01:02.4]} 36.
gxf4 {[%clk 0:00:20.8]} 36... Bf3 {[%clk 0:00:57.2]} 37. Qa8+ {[%clk 0:00:21.3]}
37... Kc7 {[%clk 0:00:58.4]} 38. Qa5+ {[%clk 0:00:22.4]} 38... b6 {[%clk
0:00:52]} 39. Qa7+ {[%clk 0:00:22.8]} 39... Kc6 {[%clk 0:00:53]} 40. Rd4 {[%clk
0:00:18.3]} 40... Rxd4 {[%clk 0:00:52.7]} 0-1

[Event "*** Qualifier 3: Titled Tuesday 3|2 Blitz"]
[Site "Chess.com"]
[Date "2017.04.18"]
[Round "7"]
[White "Rogue_King"]
[Black "matiss90"]
[Result "0-1"]
[WhiteElo "2120"]
[BlackElo "2309"]
[TimeControl "180+2"]
[EndTime "14:34:44 PDT"]
[Termination "matiss90 won by checkmate"]

1. d4 {[%clk 0:03:02]} 1... Nf6 {[%clk 0:03:00.3]} 2. c4 {[%clk 0:03:03.3]} 2...
g6 {[%clk 0:03:01.4]} 3. Nc3 {[%clk 0:03:04.2]} 3... Bg7 {[%clk 0:03:02]} 4. e4
{[%clk 0:03:04.9]} 4... d6 {[%clk 0:03:03.3]} 5. Be2 {[%clk 0:03:06.5]} 5... O-O
{[%clk 0:03:04.7]} 6. Nf3 {[%clk 0:03:08.1]} 6... Na6 {[%clk 0:03:05.9]} 7. O-O
{[%clk 0:03:09]} 7... e5 {[%clk 0:03:07.4]} 8. Re1 {[%clk 0:03:10.3]} 8... exd4
{[%clk 0:03:07.1]} 9. Nxd4 {[%clk 0:03:12.2]} 9... Nc5 {[%clk 0:03:07]} 10. f3
{[%clk 0:03:12.5]} 10... a5 {[%clk 0:03:08.3]} 11. Be3 {[%clk 0:03:12.8]} 11...
Re8 {[%clk 0:03:08.3]} 12. Qd2 {[%clk 0:03:14.2]} 12... Nh5 {[%clk 0:03:09]} 13.
g4 {[%clk 0:03:08.4]} 13... Nf6 {[%clk 0:02:53.9]} 14. Rad1 {[%clk 0:03:03.7]}
14... Bxg4 {[%clk 0:02:49.8]} 15. fxg4 {[%clk 0:02:55.1]} 15... Nfxe4 {[%clk
0:02:48.9]} 16. Nxe4 {[%clk 0:02:55.4]} 16... Nxe4 {[%clk 0:02:48.6]} 17. Qc2
{[%clk 0:02:05]} 17... Qh4 {[%clk 0:02:38]} 18. Bf3 {[%clk 0:01:55.2]} 18... Ng5
{[%clk 0:02:25.6]} 19. Qe2 {[%clk 0:00:58.8]} 19... Rxe3 {[%clk 0:01:56.4]} 20.
Qxe3 {[%clk 0:00:47.4]} 20... Bxd4 {[%clk 0:01:55.7]} 21. Rxd4 {[%clk
0:00:34.2]} 21... Qxe1+ {[%clk 0:01:49.5]} 22. Qxe1 {[%clk 0:00:30.5]} 22...
Nxf3+ {[%clk 0:01:49.5]} 23. Kf2 {[%clk 0:00:31.2]} 23... Nxe1 {[%clk
0:01:49.7]} 24. Kxe1 {[%clk 0:00:32.2]} 24... Re8+ {[%clk 0:01:50.9]} 25. Kf2
{[%clk 0:00:30.7]} 25... Re5 {[%clk 0:01:52]} 26. b3 {[%clk 0:00:23.2]} 26... f5
{[%clk 0:01:52]} 27. h3 {[%clk 0:00:23.6]} 27... Kf7 {[%clk 0:01:52.4]} 28. a3
{[%clk 0:00:23.6]} 28... Ke6 {[%clk 0:01:52.8]} 29. b4 {[%clk 0:00:23.6]} 29...
axb4 {[%clk 0:01:53.4]} 30. axb4 {[%clk 0:00:25.5]} 30... Re4 {[%clk 0:01:54.3]}
31. gxf5+ {[%clk 0:00:13.9]} 31... gxf5 {[%clk 0:01:54]} 32. Rd3 {[%clk
0:00:08.8]} 32... Rxc4 {[%clk 0:01:53.7]} 33. Rb3 {[%clk 0:00:09.3]} 33... b5
{[%clk 0:01:53.8]} 34. Kf3 {[%clk 0:00:09.1]} 34... Ke5 {[%clk 0:01:53.2]} 35.
Kg3 {[%clk 0:00:09.6]} 35... h5 {[%clk 0:01:53]} 36. Kf3 {[%clk 0:00:09.5]}
36... f4 {[%clk 0:01:53.1]} 37. Rb1 {[%clk 0:00:07.3]} 37... Rc3+ {[%clk
0:01:53.1]} 38. Kg2 {[%clk 0:00:08.7]} 38... Ke4 {[%clk 0:01:53]} 39. Re1+
{[%clk 0:00:09.3]} 39... Re3 {[%clk 0:01:53.7]} 40. Rc1 {[%clk 0:00:10.9]} 40...
Re2+ {[%clk 0:01:53.8]} 41. Kf1 {[%clk 0:00:11.9]} 41... Rb2 {[%clk 0:01:51.4]}
42. Rxc7 {[%clk 0:00:12.7]} 42... Rxb4 {[%clk 0:01:51.8]} 43. Rc3 {[%clk
0:00:13.1]} 43... d5 {[%clk 0:01:51.4]} 44. Rc5 {[%clk 0:00:13.3]} 44... h4
{[%clk 0:01:51]} 45. Ke2 {[%clk 0:00:13.6]} 45... f3+ {[%clk 0:01:50.9]} 46. Kf2
{[%clk 0:00:14.8]} 46... Rb2+ {[%clk 0:01:50.9]} 47. Kf1 {[%clk 0:00:15.9]}
47... Kf4 {[%clk 0:01:51.2]} 48. Rxd5 {[%clk 0:00:16]} 48... Kg3 {[%clk
0:01:48.8]} 49. Rg5+ {[%clk 0:00:17.1]} 49... Kxh3 {[%clk 0:01:49]} 50. Kg1
{[%clk 0:00:17.2]} 50... Rg2+ {[%clk 0:01:47.5]} 51. Kh1 {[%clk 0:00:18.6]}
51... Re2 {[%clk 0:01:16.8]} 52. Rg1 {[%clk 0:00:14.5]} 52... Rh2# {[%clk
0:01:16]} 0-1

[Event "*** Qualifier 3: Titled Tuesday 3|2 Blitz"]
[Site "Chess.com"]
[Date "2017.04.18"]
[Round "7"]
[White "Gabix_94"]
[Black "GamayevOleg"]
[Result "1-0"]
[WhiteElo "2528"]
[BlackElo "2408"]
[TimeControl "180+2"]
[EndTime "14:34:45 PDT"]
[Termination "Gabix_94 won by resignation"]

1. e4 {[%clk 0:03:02]} 1... d6 {[%clk 0:03:00.7]} 2. d4 {[%clk 0:03:02.7]} 2...
Nf6 {[%clk 0:03:02.2]} 3. Nc3 {[%clk 0:03:02.9]} 3... e5 {[%clk 0:03:03.7]} 4.
Nf3 {[%clk 0:03:03.5]} 4... exd4 {[%clk 0:03:04.3]} 5. Qxd4 {[%clk 0:03:03.6]}
5... Nc6 {[%clk 0:03:04.7]} 6. Bb5 {[%clk 0:03:04.3]} 6... Bd7 {[%clk
0:03:05.6]} 7. Bxc6 {[%clk 0:03:03.7]} 7... Bxc6 {[%clk 0:03:07.5]} 8. Bg5
{[%clk 0:03:04.9]} 8... Be7 {[%clk 0:03:07.3]} 9. O-O-O {[%clk 0:03:06]} 9...
O-O {[%clk 0:03:06]} 10. Rhe1 {[%clk 0:02:51.7]} 10... h6 {[%clk 0:02:43.8]} 11.
Bh4 {[%clk 0:02:50.7]} 11... Ng4 {[%clk 0:02:42.4]} 12. Bxe7 {[%clk 0:02:48.7]}
12... Qxe7 {[%clk 0:02:43.3]} 13. Kb1 {[%clk 0:02:47.6]} 13... Ne5 {[%clk
0:02:40.6]} 14. Nd2 {[%clk 0:02:47.6]} 14... Qf6 {[%clk 0:02:35.2]} 15. h3
{[%clk 0:02:40.6]} 15... Nd7 {[%clk 0:02:31.2]} 16. Qe3 {[%clk 0:02:40.7]} 16...
Rfe8 {[%clk 0:02:28.4]} 17. Nb3 {[%clk 0:02:39.7]} 17... a5 {[%clk 0:02:23.1]}
18. Nd4 {[%clk 0:02:38.8]} 18... Rab8 {[%clk 0:02:20]} 19. g4 {[%clk 0:02:33.6]}
19... Ne5 {[%clk 0:02:15.7]} 20. f4 {[%clk 0:02:32.3]} 20... Nc4 {[%clk
0:02:08.9]} 21. Qd3 {[%clk 0:02:32.1]} 21... Nb6 {[%clk 0:02:05.2]} 22. Rf1
{[%clk 0:02:28.2]} 22... Na4 {[%clk 0:01:48.1]} 23. Nxa4 {[%clk 0:02:20.3]}
23... Bxa4 {[%clk 0:01:48.9]} 24. g5 {[%clk 0:02:11.3]} 24... hxg5 {[%clk
0:01:49]} 25. fxg5 {[%clk 0:02:13.2]} 25... Qg6 {[%clk 0:01:50.3]} 26. Nf5
{[%clk 0:02:12.7]} 26... Bd7 {[%clk 0:01:50.3]} 27. h4 {[%clk 0:02:07.2]} 27...
Re5 {[%clk 0:01:50.6]} 28. h5 {[%clk 0:01:50.7]} 28... Qe6 {[%clk 0:01:48.6]}
29. g6 {[%clk 0:01:45.3]} 29... Rxe4 {[%clk 0:01:36]} 30. gxf7+ {[%clk
0:01:43.6]} 30... Kf8 {[%clk 0:01:37.5]} 31. Qg3 {[%clk 0:01:26.9]} 31... Qe5
{[%clk 0:01:38.4]} 32. Qg6 {[%clk 0:00:55.7]} 32... Bxf5 {[%clk 0:01:30.4]} 33.
Rxf5 {[%clk 0:00:57.6]} 33... Re1 {[%clk 0:01:31]} 34. Rf1 {[%clk 0:00:57.6]}
34... Rxd1+ {[%clk 0:01:25.6]} 35. Rxd1 {[%clk 0:00:59.5]} 35... Qf6 {[%clk
0:01:26.9]} 36. Qg2 {[%clk 0:00:49]} 36... Rd8 {[%clk 0:01:23.1]} 37. a3 {[%clk
0:00:48.8]} 37... Rd7 {[%clk 0:01:22.8]} 38. Rf1 {[%clk 0:00:49.9]} 38... Qe6
{[%clk 0:01:16]} 39. h6 {[%clk 0:00:44.7]} 39... Qxh6 {[%clk 0:01:08.8]} 40.
Qxb7 {[%clk 0:00:41.4]} 40... Rd8 {[%clk 0:00:54.9]} 41. Qxc7 {[%clk 0:00:40.9]}
41... Ra8 {[%clk 0:00:56]} 42. Qd7 {[%clk 0:00:35.8]} 42... Rb8 {[%clk
0:00:44.9]} 43. Re1 {[%clk 0:00:36.2]} 1-0

[Event "*** Qualifier 3: Titled Tuesday 3|2 Blitz"]
[Site "Chess.com"]
[Date "2017.04.18"]
[Round "7"]
[White "Bugcrusher"]
[Black "amazingoid"]
[Result "0-1"]
[WhiteElo "2483"]
[BlackElo "2379"]
[TimeControl "180+2"]
[EndTime "14:34:47 PDT"]
[Termination "amazingoid won by resignation"]

1. d4 {[%clk 0:03:02]} 1... Nf6 {[%clk 0:03:00.6]} 2. Nf3 {[%clk 0:03:02]} 2...
e6 {[%clk 0:03:01.8]} 3. c4 {[%clk 0:03:01.8]} 3... Nc6 {[%clk 0:03:02.3]} 4. a3
{[%clk 0:02:58.4]} 4... d6 {[%clk 0:03:03.4]} 5. Nc3 {[%clk 0:02:59.3]} 5... g6
{[%clk 0:03:04.9]} 6. g3 {[%clk 0:03:00.8]} 6... Bg7 {[%clk 0:03:06.5]} 7. Bg2
{[%clk 0:03:02.5]} 7... O-O {[%clk 0:03:08.1]} 8. O-O {[%clk 0:03:04.2]} 8... e5
{[%clk 0:03:09.7]} 9. d5 {[%clk 0:03:04.6]} 9... Ne7 {[%clk 0:03:00.6]} 10. e4
{[%clk 0:03:03.4]} 10... Nd7 {[%clk 0:02:57.2]} 11. Ne1 {[%clk 0:03:04.5]} 11...
f5 {[%clk 0:02:58]} 12. Nd3 {[%clk 0:03:04.9]} 12... a5 {[%clk 0:02:15.5]} 13.
f4 {[%clk 0:02:36.7]} 13... Nc5 {[%clk 0:02:15.7]} 14. Nxc5 {[%clk 0:02:27.9]}
14... dxc5 {[%clk 0:02:17]} 15. Be3 {[%clk 0:02:19.5]} 15... b6 {[%clk
0:02:18.3]} 16. Qd2 {[%clk 0:02:20.4]} 16... Ba6 {[%clk 0:01:47.1]} 17. b3
{[%clk 0:02:16.9]} 17... Nc8 {[%clk 0:01:48]} 18. Rad1 {[%clk 0:02:12.2]} 18...
Nd6 {[%clk 0:01:49.1]} 19. Kh1 {[%clk 0:02:03.7]} 19... a4 {[%clk 0:01:38.7]}
20. Nxa4 {[%clk 0:01:57.8]} 20... Bxc4 {[%clk 0:01:39.6]} 21. bxc4 {[%clk
0:01:56.6]} 21... Rxa4 {[%clk 0:01:39.4]} 22. exf5 {[%clk 0:01:54.1]} 22... Rxa3
{[%clk 0:01:30.7]} 23. fxg6 {[%clk 0:01:48.4]} 23... Nxc4 {[%clk 0:01:12.7]} 24.
gxh7+ {[%clk 0:01:48.3]} 24... Kh8 {[%clk 0:01:13.7]} 25. Qc1 {[%clk 0:01:25.6]}
25... Nxe3 {[%clk 0:01:07.9]} 26. Qxa3 {[%clk 0:01:25.3]} 26... Nxd1 {[%clk
0:01:08.8]} 27. Rxd1 {[%clk 0:01:21.6]} 27... exf4 {[%clk 0:01:10]} 28. gxf4
{[%clk 0:01:19.9]} 28... Rxf4 {[%clk 0:01:06.3]} 29. Qh3 {[%clk 0:01:18.2]}
29... Rh4 {[%clk 0:00:59.8]} 30. Qf5 {[%clk 0:01:10.5]} 30... Qd6 {[%clk
0:00:48.9]} 31. h3 {[%clk 0:01:03.8]} 31... Rf4 {[%clk 0:00:47.7]} 32. Qh5
{[%clk 0:00:52.8]} 32... Qe5 {[%clk 0:00:38.5]} 33. Qg6 {[%clk 0:00:38.6]} 33...
Rf6 {[%clk 0:00:19.5]} 34. Qg4 {[%clk 0:00:34.2]} 34... Qf4 {[%clk 0:00:14.4]}
35. Qh5 {[%clk 0:00:27.2]} 35... Rf5 {[%clk 0:00:10.5]} 36. Qe8+ {[%clk
0:00:26.9]} 36... Rf8 {[%clk 0:00:11.6]} 37. Qe6 {[%clk 0:00:23.9]} 37... Be5
{[%clk 0:00:12.3]} 0-1